[Event "46th GRE-chT Premier 2018"]
[Site "Rio Achaia"]
[Date "2018.07.10"]
[Round "1"]
[White "Gkikas, Ioannis"]
[Black "Stefan, Victor"]
[Result "0-1"]
[ECO "C47"]
[WhiteElo "1553"]
[BlackElo "2102"]
[Annotator "NA"]
[PlyCount "70"]
[EventDate "2018.07.10"]
[EventType "team-tourn"]
[EventCountry "GRE"]
[SourceTitle "playchess.com"]
[Source "ChessBase"]
[SourceQuality "1"]
[TimeControl "40/5400+30:1800+30"]

1. e4 {[%emt 0:00:00]} e5 {[%emt 0:00:00]} 2. Nf3 {[%emt 0:00:00]} Nc6 {[%emt 0:00:00]} 3. Nc3 {[%emt 0:00:00]} Nf6 {[%emt 0:00:00]} 4. d4 {[%emt 0:00:00]} exd4 {[%emt 0:00:00]} 5. Nxd4 {[%emt 0:00:04]} Bb4 {[%emt 0:00:11]} 6. Nxc6 {[%emt 0:00:06]} bxc6 {[%emt 0:00:10]} 7. Bd3 {[%emt 0:00:07]} O-O {[%emt 0:00:13]} 8. O-O {[%emt 0:00:08]} d5 {[%emt 0:00:09]} 9. exd5 {[%emt 0:00:06]} cxd5 {[%emt 0:00:08]} 10. Qf3 {[%emt 0:02:02]} c6 {[%emt 0:02:40]} 11. h3 {[%emt 0:04:39]} Re8 {[%emt 0:01:18]} 12. Bg5 {[%emt 0:01:57]} Bd6 {[%emt 0:01:40]} 13. Rfe1 {[%emt 0:03:48]} Be5 {[%emt 0:02:03]} 14. Bf4 {[%emt 0:04:12]} Bxf4 {[%emt 0:07:48]} 15. Qxf4 {[%emt 0:04:07]} Be6 {[%emt 0:00:31]} 16. Na4 {[%emt 0:03:28]} Qb8 {[%emt 0:04:40]} 17. Qd4 {[%emt 0:05:46]} Qd6 {[%emt 0:00:24]} 18. Nc5 {[%emt 0:13:53]} Nd7 {[%emt 0:06:43]} 19. Nxd7 {[%emt 0:01:40]} Qxd7 {[%emt 0:18:13]} 20. c4 {[%emt 0:05:26]} Rab8 {[%emt 0:02:54]} 21. cxd5 {[%emt 0:03:38]} Qxd5 {[%emt 0:03:45]} 22. Qxd5 {[%emt 0:03:47]} Bxd5 {[%emt 0:00:20]} 23. b3 {[%emt 0:00:50]} Kf8 {[%emt 0:00:50]} 24. g3 {[%emt 0:03:10]} g6 {[%emt 0:00:49]} 25. Bf1 {[%emt 0:07:11]} Rb4 {[%emt 0:10:07]} 26. Bg2 {[%emt 0:04:11]} Rd4 {[%emt 0:06:03]} 27. Red1 {[%emt 0:05:47]} Rxd1+ {[%emt 0:01:31]} 28. Rxd1 {[%emt 0:00:08]} Rd8 {[%emt 0:02:25]} 29. Bxd5 {[%emt 0:03:51]} cxd5 {[%emt 0:00:13]} 30. Kg2 {[%emt 0:01:13]} Ke7 {[%emt 0:00:11]} 31. Kf3 {[%emt 0:00:19]} Kd6 {[%emt 0:00:20]} 32. b4 {[%emt 0:12:22]} Re8 {[%emt 0:07:45]} 33. a3 {[%emt 0:01:39]} Re4 {[%emt 0:00:42]} 34. Rd3 {[%emt 0:00:14]} f5 {[%emt 0:04:03]} 35. Re3 {[%emt 0:06:33]} Ke5 {[%emt 0:00:27]} 0-1

[Event "46th GRE-chT Premier 2018"]
[Site "Rio Achaia"]
[Date "2018.07.10"]
[Round "1"]
[White "Argyropoulos, Theodoros"]
[Black "Karakatsanis, Nikolaos"]
[Result "0-1"]
[ECO "B26"]
[WhiteElo "1539"]
[BlackElo "1907"]
[Annotator "NA"]
[PlyCount "96"]
[EventDate "2018.07.10"]
[EventType "team-tourn"]
[EventCountry "GRE"]
[SourceTitle "playchess.com"]
[Source "ChessBase"]
[SourceQuality "1"]
[TimeControl "40/5400+30:1800+30"]

1. e4 {[%emt 0:00:00]} c5 {[%emt 0:01:22]} 2. Nc3 {[%emt 0:00:00]} Nc6 {[%emt 0:00:05]} 3. g3 {[%emt 0:00:00]} g6 {[%emt 0:00:10]} 4. d3 Bg7 {[%emt 0:00:05]} 5. Bg2 {[%emt 0:00:04]} d6 {[%emt 0:00:13]} 6. Be3 {[%emt 0:00:18]} e6 {[%emt 0:01:12]} 7. Qd2 {[%emt 0:00:35]} Nd4 {[%emt 0:00:06]} 8. Nge2 {[%emt 0:04:00]} Ne7 {[%emt 0:00:16]} 9. Nd1 {[%emt 0:02:59]} Nxe2 {[%emt 0:03:09]} 10. Qxe2 {[%emt 0:01:14]} O-O {[%emt 0:00:11]} 11. O-O {[%emt 0:02:05]} Nc6 {[%emt 0:00:52]} 12. c3 {[%emt 0:00:19]} h6 {[%emt 0:01:57]} 13. f4 {[%emt 0:05:17]} f5 {[%emt 0:00:25]} 14. e5 {[%emt 0:10:08]} Re8 {[%emt 0:03:06]} 15. d4 {[%emt 0:15:22]} dxe5 {[%emt 0:00:11]} 16. dxe5 {[%emt 0:01:12]} Bf8 {[%emt 0:03:19]} 17. Bxc6 {[%emt 0:07:04]} bxc6 {[%emt 0:00:07]} 18. c4 {[%emt 0:00:02]} Re7 {[%emt 0:08:23]} 19. Nc3 {[%emt 0:02:26]} Rd7 {[%emt 0:00:21]} 20. Rad1 {[%emt 0:03:07]} Rd4 {[%emt 0:02:19]} 21. Bxd4 {[%emt 0:02:26]} cxd4 {[%emt 0:00:06]} 22. Na4 {[%emt 0:00:58]} Qa5 {[%emt 0:00:53]} 23. b3 {[%emt 0:01:52]} c5 {[%emt 0:00:05]} 24. Qf3 {[%emt 0:04:39]} Rb8 {[%emt 0:00:11]} 25. Qc6 {[%emt 0:02:36]} Kf7 {[%emt 0:00:08]} 26. Nb2 {[%emt 0:08:05]} Bb7 {[%emt 0:01:33]} 27. Qa4 {[%emt 0:01:11]} Qc7 {[%emt 0:00:07]} 28. Nd3 {[%emt 0:00:43]} Ba8 {[%emt 0:01:04]} 29. Ne1 {[%emt 0:02:25]} g5 {[%emt 0:02:16]} 30. Qa3 {[%emt 0:02:29]} Qb7 {[%emt 0:00:33]} 31. Kf2 {[%emt 0:00:19]} gxf4 {[%emt 0:06:13]} 32. gxf4 {[%emt 0:00:49]} Qe4 {[%emt 0:00:50]} 33. Qc1 {[%emt 0:04:38]} Be7 {[%emt 0:00:08]} 34. Rd3 {[%emt 0:06:38]} Bh4+ {[%emt 0:01:53]} 35. Rg3 {[%emt 0:00:12]} Rg8 {[%emt 0:00:06]} 36. Qd2 {[%emt 0:08:02]} Rg4 {[%emt 0:00:10]} 37. Nd3 {[%emt 0:00:38]} Rxg3 {[%emt 0:05:13]} 38. hxg3 {[%emt 0:01:01]} Qf3+ {[%emt 0:00:06]} 39. Ke1 {[%emt 0:00:09]} Bxg3+ {[%emt 0:00:04]} 40. Nf2 {[%emt 0:00:00]} Bxf4 {[%emt 0:00:00]} 41. Qd3 {[%emt 0:07:04]} Be3 {[%emt 0:03:24]} 42. Qe2 {[%emt 0:11:04]} Qg3 {[%emt 0:00:17]} 43. Qh5+ {[%emt 0:00:51]} Ke7 {[%emt 0:00:08]} 44. Ke2 {[%emt 0:00:47]} Bg2 {[%emt 0:02:34]} 45. Nd1 {[%emt 0:07:03]} Bxf1+ {[%emt 0:00:19]} 46. Kxf1 {[%emt 0:00:03]} Qg1+ {[%emt 0:01:20]} 47. Ke2 {[%emt 0:00:08]} Qg2+ {[%emt 0:00:04]} 48. Ke1 {[%emt 0:00:29]} Bd2# {[%emt 0:00:03]} 0-1

[Event "46th GRE-chT Premier 2018"]
[Site "Rio Achaia"]
[Date "2018.07.10"]
[Round "1"]
[White "Rousis, Chrysostomos"]
[Black "Magklaras, Panagiotis"]
[Result "1-0"]
[ECO "B27"]
[WhiteElo "1483"]
[BlackElo "1131"]
[Annotator "NA"]
[PlyCount "111"]
[EventDate "2018.07.10"]
[EventType "team-tourn"]
[EventCountry "GRE"]
[SourceTitle "playchess.com"]
[Source "ChessBase"]
[SourceQuality "1"]
[TimeControl "40/5400+30:1800+30"]

1. e4 {[%emt 0:00:00]} c5 {[%emt 0:00:00]} 2. Nf3 {[%emt 0:00:00]} g6 {[%emt 0:00:00]} 3. d4 {[%emt 0:00:00]} cxd4 {[%emt 0:00:00]} 4. Qxd4 {[%emt 0:00:00]} Nf6 {[%emt 0:00:00]} 5. e5 {[%emt 0:00:00]} Nc6 {[%emt 0:00:37]} 6. Qa4 {[%emt 0:00:07]} Nd5 {[%emt 0:00:51]} 7. Qe4 {[%emt 0:00:16]} Nb6 {[%emt 0:00:58]} 8. Nc3 {[%emt 0:00:16]} Bg7 {[%emt 0:01:18]} 9. Bf4 {[%emt 0:00:16]} d5 {[%emt 0:07:48]} 10. exd6 {[%emt 0:05:16]} Bf5 {[%emt 0:00:07]} 11. Qe3 {[%emt 0:01:07]} O-O {[%emt 0:01:22]} 12. O-O-O {[%emt 0:05:08]} exd6 {[%emt 0:01:13]} 13. Rxd6 {[%emt 0:05:33]} Qc8 {[%emt 0:03:51]} 14. Qd2 {[%emt 0:09:41]} Re8 {[%emt 0:25:09]} 15. Bh6 {[%emt 0:06:27]} Rd8 {[%emt 0:23:07]} 16. Bxg7 {[%emt 0:03:22]} Kxg7 {[%emt 0:00:24]} 17. Nd4 {[%emt 0:00:53]} Rxd6 {[%emt 0:03:29]} 18. Nxf5+ {[%emt 0:00:09]} Qxf5 {[%emt 0:00:06]} 19. Qxd6 {[%emt 0:00:09]} Qxf2 {[%emt 0:00:43]} 20. Qd2 {[%emt 0:03:34]} Qxd2+ {[%emt 0:04:01]} 21. Kxd2 {[%emt 0:00:09]} Rd8+ {[%emt 0:00:02]} 22. Kc1 {[%emt 0:00:31]} Ne5 {[%emt 0:00:56]} 23. Be2 {[%emt 0:03:07]} Nbc4 {[%emt 0:01:54]} 24. g4 {[%emt 0:19:29]} f6 {[%emt 0:04:43]} 25. Rg1 {[%emt 0:02:03]} a6 {[%emt 0:01:32]} 26. Ne4 {[%emt 0:02:26]} Ne3 {[%emt 0:02:33]} 27. Rg3 {[%emt 0:01:54]} N3xg4 {[%emt 0:02:08]} 28. Bxg4 {[%emt 0:01:39]} Nxg4 {[%emt 0:00:27]} 29. Rxg4 {[%emt 0:00:04]} f5 {[%emt 0:01:08]} 30. Ng5 {[%emt 0:03:34]} fxg4 {[%emt 0:04:17]} 31. Ne6+ {[%emt 0:00:07]} Kf6 {[%emt 0:00:06]} 32. Nxd8 {[%emt 0:00:06]} h5 {[%emt 0:00:08]} 33. Kd2 {[%emt 0:00:30]} Ke5 {[%emt 0:02:38]} 34. Ke3 {[%emt 0:00:34]} h4 {[%emt 0:01:11]} 35. Nxb7 {[%emt 0:00:47]} h3 {[%emt 0:00:52]} 36. Kf2 {[%emt 0:01:53]} Kf4 {[%emt 0:03:18]} 37. Nc5 {[%emt 0:00:20]} g3+ {[%emt 0:01:47]} 38. hxg3+ {[%emt 0:00:07]} Kg4 {[%emt 0:00:05]} 39. Nxa6 {[%emt 0:00:38]} h2 {[%emt 0:00:10]} 40. Kg2 {[%emt 0:00:00]} h1=Q+ {[%emt 0:00:00]} 41. Kxh1 {[%emt 0:00:10]} Kxg3 {[%emt 0:00:20]} 42. Kg1 {[%emt 0:00:08]} Kf3 {[%emt 0:00:18]} 43. b4 {[%emt 0:00:07]} Ke4 {[%emt 0:00:13]} 44. b5 {[%emt 0:00:33]} Kd5 {[%emt 0:00:22]} 45. c4+ {[%emt 0:00:07]} Kd6 {[%emt 0:00:11]} 46. c5+ {[%emt 0:00:09]} Kd7 {[%emt 0:00:11]} 47. c6+ {[%emt 0:00:13]} Kc8 {[%emt 0:00:14]} 48. b6 {[%emt 0:00:13]} g5 {[%emt 0:00:26]} 49. b7+ {[%emt 0:00:06]} Kd8 {[%emt 0:00:10]} 50. b8=Q+ {[%emt 0:00:09]} Ke7 {[%emt 0:00:07]} 51. c7 {[%emt 0:00:13]} g4 {[%emt 0:00:18]} 52. c8=Q {[%emt 0:00:18]} g3 {[%emt 0:00:14]} 53. Qe8+ {[%emt 0:00:05]} Kf6 {[%emt 0:00:08]} 54. Qf4+ {[%emt 0:00:09]} Kg7 {[%emt 0:00:10]} 55. Qg5+ {[%emt 0:00:07]} Kh7 {[%emt 0:00:10]} 56. Qeh5# {[%emt 0:00:07]} 1-0

[Event "46th GRE-chT Premier 2018"]
[Site "Rio Achaia"]
[Date "2018.07.10"]
[Round "1"]
[White "Gioutsou, Miranta"]
[Black "Kaliontzaki, Argyro Evanthia"]
[Result "1/2-1/2"]
[ECO "B30"]
[WhiteElo "1467"]
[BlackElo "1346"]
[Annotator "NA"]
[PlyCount "89"]
[EventDate "2018.07.10"]
[EventType "team-tourn"]
[EventCountry "GRE"]
[SourceTitle "playchess.com"]
[Source "ChessBase"]
[SourceQuality "1"]
[TimeControl "40/5400+30:1800+30"]

1. e4 {[%emt 0:00:00]} c5 {[%emt 0:00:00]} 2. Nf3 {[%emt 0:00:00]} Nc6 {[%emt 0:00:00]} 3. c3 {[%emt 0:00:00]} d5 {[%emt 0:00:00]} 4. exd5 {[%emt 0:00:00]} Qxd5 {[%emt 0:00:00]} 5. d4 {[%emt 0:00:03]} Bf5 {[%emt 0:00:22]} 6. Be2 {[%emt 0:01:39]} cxd4 {[%emt 0:03:52]} 7. cxd4 {[%emt 0:00:14]} Bxb1 {[%emt 0:00:38]} 8. Rxb1 {[%emt 0:00:07]} Nf6 {[%emt 0:02:12]} 9. a3 {[%emt 0:05:17]} e6 {[%emt 0:02:37]} 10. O-O {[%emt 0:02:04]} Be7 {[%emt 0:05:47]} 11. h3 {[%emt 0:05:45]} O-O {[%emt 0:01:54]} 12. Be3 {[%emt 0:02:07]} a5 {[%emt 0:12:11]} 13. Qd3 {[%emt 0:15:15]} a4 {[%emt 0:08:33]} 14. Nd2 {[%emt 0:03:00]} Rfd8 {[%emt 0:06:39]} 15. Bf3 {[%emt 0:15:34]} Qd7 {[%emt 0:02:47]} 16. Bxc6 {[%emt 0:03:02]} Qxc6 {[%emt 0:01:15]} 17. Rfc1 {[%emt 0:02:21]} Qd7 {[%emt 0:04:09]} 18. Nc4 {[%emt 0:12:55]} Nd5 {[%emt 0:03:10]} 19. Rc2 {[%emt 0:09:08]} Bf6 {[%emt 0:09:18]} 20. Qe4 {[%emt 0:07:05]} Rac8 {[%emt 0:03:39]} 21. Rbc1 {[%emt 0:01:37]} b5 {[%emt 0:05:09]} 22. Ne5 {[%emt 0:02:40]} Bxe5 {[%emt 0:00:38]} 23. dxe5 {[%emt 0:00:51]} Rxc2 {[%emt 0:00:59]} 24. Rxc2 {[%emt 0:00:23]} Nxe3 {[%emt 0:00:27]} 25. fxe3 {[%emt 0:00:33]} h6 {[%emt 0:02:23]} 26. Rc5 {[%emt 0:06:40]} Qd1+ {[%emt 0:01:44]} 27. Kh2 {[%emt 0:00:17]} Qb3 {[%emt 0:02:12]} 28. Rc2 {[%emt 0:03:00]} Qd5 {[%emt 0:01:21]} 29. Qf4 {[%emt 0:01:00]} Qb3 {[%emt 0:03:20]} 30. Rc7 {[%emt 0:00:52]} Rf8 {[%emt 0:01:31]} 31. Qd4 {[%emt 0:00:18]} g6 {[%emt 0:04:57]} 32. Rb7 {[%emt 0:01:13]} h5 {[%emt 0:03:04]} 33. Qb4 {[%emt 0:00:38]} Qxe3 {[%emt 0:01:42]} 34. Rxb5 {[%emt 0:00:11]} Rd8 {[%emt 0:03:04]} 35. Qxa4 {[%emt 0:00:56]} Rd2 {[%emt 0:00:53]} 36. Qb4 {[%emt 0:00:43]} Qe2 {[%emt 0:01:25]} 37. Rb8+ {[%emt 0:00:15]} Kh7 {[%emt 0:00:34]} 38. Rh8+ {[%emt 0:00:24]} Kxh8 {[%emt 0:00:23]} 39. Qf8+ {[%emt 0:00:08]} Kh7 {[%emt 0:00:12]} 40. Qxf7+ {[%emt 0:00:00]} Kh8 {[%emt 0:00:00]} 41. Qf8+ {[%emt 0:00:24]} Kh7 {[%emt 0:01:26]} 42. Qf7+ {[%emt 0:00:05]} Kh6 {[%emt 0:00:16]} 43. Qf4+ {[%emt 0:00:30]} Kg7 {[%emt 0:01:20]} 44. Qf6+ {[%emt 0:00:06]} Kh6 {[%emt 0:01:57]} 45. Qf4+ {[%emt 0:00:07]} 1/2-1/2

[Event "46th GRE-chT Premier 2018"]
[Site "Rio Achaia"]
[Date "2018.07.10"]
[Round "1"]
[White "Louka, Marianthi"]
[Black "Skiadopoulou, Afroditi-Lelouda"]
[Result "1/2-1/2"]
[ECO "C54"]
[WhiteElo "1465"]
[BlackElo "1491"]
[Annotator "NA"]
[PlyCount "114"]
[EventDate "2018.07.10"]
[EventType "team-tourn"]
[EventCountry "GRE"]
[SourceTitle "playchess.com"]
[Source "ChessBase"]
[SourceQuality "1"]
[TimeControl "40/5400+30:1800+30"]

1. e4 {[%emt 0:00:00]} e5 {[%emt 0:00:00]} 2. Nf3 {[%emt 0:00:00]} Nc6 {[%emt 0:00:00]} 3. Bc4 {[%emt 0:00:00]} Bc5 {[%emt 0:00:00]} 4. c3 {[%emt 0:00:00]} Nf6 {[%emt 0:00:02]} 5. d3 {[%emt 0:00:09]} O-O {[%emt 0:00:13]} 6. O-O {[%emt 0:00:09]} d5 {[%emt 0:00:07]} 7. exd5 {[%emt 0:02:35]} Nxd5 {[%emt 0:00:05]} 8. h3 {[%emt 0:05:57]} Nb6 {[%emt 0:00:12]} 9. Bb3 {[%emt 0:00:17]} Bf5 {[%emt 0:35:43]} 10. Nxe5 {[%emt 0:13:12]} Nxe5 {[%emt 0:03:38]} 11. d4 {[%emt 0:00:22]} Bd6 {[%emt 0:17:20]} 12. dxe5 {[%emt 0:00:08]} Bxe5 {[%emt 0:00:06]} 13. Qf3 {[%emt 0:03:07]} Qf6 {[%emt 0:05:06]} 14. Na3 {[%emt 0:06:47]} Qg6 {[%emt 0:01:35]} 15. Re1 {[%emt 0:15:00]} Rae8 {[%emt 0:08:16]} 16. Kh1 {[%emt 0:03:15]} Bd6 {[%emt 0:03:34]} 17. Bf4 {[%emt 0:01:53]} Be4 {[%emt 0:04:32]} 18. Rxe4 {[%emt 0:08:36]} Qxe4 {[%emt 0:01:31]} 19. Qxe4 {[%emt 0:00:35]} Rxe4 {[%emt 0:00:06]} 20. Be3 {[%emt 0:01:18]} Rfe8 {[%emt 0:01:02]} 21. Rd1 {[%emt 0:01:39]} Kf8 {[%emt 0:02:21]} 22. Nb5 {[%emt 0:02:58]} Nc4 {[%emt 0:06:09]} 23. Bxc4 {[%emt 0:03:44]} Rxc4 {[%emt 0:00:07]} 24. Nxd6 {[%emt 0:00:03]} cxd6 {[%emt 0:00:07]} 25. Rxd6 {[%emt 0:00:02]} Ke7 {[%emt 0:01:23]} 26. Rd2 {[%emt 0:07:41]} b6 {[%emt 0:01:57]} 27. g3 {[%emt 0:07:02]} h6 {[%emt 0:00:48]} 28. Kg2 {[%emt 0:01:02]} f6 {[%emt 0:01:34]} 29. Rd3 {[%emt 0:04:23]} Rd8 {[%emt 0:00:39]} 30. Bd4 {[%emt 0:00:07]} Rc6 {[%emt 0:00:25]} 31. Kf1 {[%emt 0:03:43]} Re6 {[%emt 0:01:27]} 32. Rd2 {[%emt 0:00:47]} Kf7 {[%emt 0:00:38]} 33. Rd3 {[%emt 0:00:38]} Rd5 {[%emt 0:01:03]} 34. Rd2 {[%emt 0:01:20]} Rh5 {[%emt 0:01:34]} 35. Kg2 {[%emt 0:06:55]} Re1 {[%emt 0:01:24]} 36. Be3 {[%emt 0:00:08]} Re5 {[%emt 0:00:15]} 37. Rd7+ {[%emt 0:00:20]} Re7 {[%emt 0:00:11]} 38. Rd2 {[%emt 0:00:24]} Ke6 {[%emt 0:01:39]} 39. c4 {[%emt 0:02:16]} Rc7 {[%emt 0:00:17]} 40. Rc2 {[%emt 0:00:00]} g5 {[%emt 0:00:00]} 41. b4 {[%emt 0:15:51]} h5 {[%emt 0:03:46]} 42. c5 {[%emt 0:01:19]} bxc5 {[%emt 0:00:19]} 43. bxc5 {[%emt 0:03:14]} g4 {[%emt 0:01:09]} 44. h4 {[%emt 0:01:40]} Rb1 {[%emt 0:00:58]} 45. Rc4 {[%emt 0:01:18]} Rb2 {[%emt 0:00:50]} 46. Ra4 {[%emt 0:00:12]} Rc2 {[%emt 0:00:51]} 47. Ra6+ {[%emt 0:00:40]} Kf5 {[%emt 0:01:46]} 48. Bd4 {[%emt 0:00:43]} Rf7 {[%emt 0:01:33]} 49. a4 {[%emt 0:03:55]} Rc4 {[%emt 0:01:44]} 50. Be3 {[%emt 0:00:08]} Re7 {[%emt 0:02:03]} 51. a5 {[%emt 0:01:10]} Rd7 {[%emt 0:03:03]} 52. c6 {[%emt 0:00:24]} Rc7 {[%emt 0:00:38]} 53. Rxa7 {[%emt 0:00:15]} R7xc6 {[%emt 0:01:44]} 54. Rh7 {[%emt 0:00:07]} Kg6 {[%emt 0:00:34]} 55. Rh6+ {[%emt 0:00:03]} Kf7 {[%emt 0:00:18]} 56. Rxh5 {[%emt 0:00:11]} Ra4 {[%emt 0:00:43]} 57. Rb5 {[%emt 0:01:08]} Rd6 {[%emt 0:00:53]} 1/2-1/2

[Event "46th GRE-chT Premier 2018"]
[Site "Rio Achaia"]
[Date "2018.07.10"]
[Round "1"]
[White "Thanopoulos, Kleanthis"]
[Black "Vragoteris, Antonios"]
[Result "0-1"]
[ECO "A46"]
[WhiteElo "1454"]
[BlackElo "2160"]
[Annotator "NA"]
[PlyCount "42"]
[EventDate "2018.07.10"]
[EventType "team-tourn"]
[EventCountry "GRE"]
[SourceTitle "playchess.com"]
[Source "ChessBase"]
[SourceQuality "1"]
[TimeControl "40/5400+30:1800+30"]

1. d4 Nf6 2. Nf3 e6 3. Bf4 c5 4. e3 Nc6 5. c3 d5 6. Bd3 Bd6 7. Nbd2 Bxf4 8. exf4 Qb6 9. dxc5 Qxb2 10. c4 Nb4 11. Nb3 Qc3+ 12. Ke2 dxc4 13. Rc1 Qxd3+ 14. Qxd3 cxd3+ 15. Kd1 Bd7 16. Ne5 Nxa2 17. Rc4 Bb5 18. Rd4 Nc3+ 19. Kd2 Ncd5 20. f3 O-O 21. f5 exf5 0-1

[Event "46th GRE-chT Premier 2018"]
[Site "Rio Achaia"]
[Date "2018.07.10"]
[Round "1"]
[White "Aivazian, Elpida Sofia"]
[Black "Karavitaki, Evaggelia"]
[Result "0-1"]
[ECO "B40"]
[WhiteElo "1451"]
[BlackElo "1723"]
[Annotator "NA"]
[PlyCount "68"]
[EventDate "2018.07.10"]
[EventType "team-tourn"]
[EventCountry "GRE"]
[SourceTitle "playchess.com"]
[Source "ChessBase"]
[SourceQuality "1"]
[TimeControl "40/5400+30:1800+30"]

1. e4 {[%emt 0:00:00]} c5 {[%emt 0:00:00]} 2. Nf3 {[%emt 0:00:00]} e6 {[%emt 0:00:00]} 3. g3 {[%emt 0:00:00]} Nc6 {[%emt 0:00:00]} 4. d4 {[%emt 0:00:02]} cxd4 {[%emt 0:00:10]} 5. Nxd4 {[%emt 0:00:06]} d5 {[%emt 0:01:24]} 6. Bg2 {[%emt 0:02:42]} dxe4 {[%emt 0:01:17]} 7. Nxc6 {[%emt 0:00:15]} Qxd1+ {[%emt 0:00:17]} 8. Kxd1 {[%emt 0:00:05]} bxc6 {[%emt 0:00:14]} 9. Bxe4 {[%emt 0:00:14]} Bb7 {[%emt 0:00:09]} 10. b3 {[%emt 0:11:44]} Nf6 {[%emt 0:05:15]} 11. Bf3 {[%emt 0:06:27]} Bc5 {[%emt 0:07:58]} 12. Be3 {[%emt 0:11:28]} Bxe3 {[%emt 0:04:44]} 13. fxe3 {[%emt 0:00:08]} O-O-O+ {[%emt 0:00:19]} 14. Ke2 {[%emt 0:06:35]} Rd6 {[%emt 0:05:13]} 15. Rd1 {[%emt 0:15:35]} Rxd1 {[%emt 0:02:23]} 16. Kxd1 {[%emt 0:00:06]} h5 {[%emt 0:00:52]} 17. Nc3 {[%emt 0:07:53]} Ng4 {[%emt 0:05:19]} 18. Ne4 {[%emt 0:08:08]} Nxe3+ {[%emt 0:17:32]} 19. Kd2 {[%emt 0:01:29]} Nf5 {[%emt 0:06:10]} 20. Nc5 {[%emt 0:04:00]} h4 {[%emt 0:05:32]} 21. Nxb7 {[%emt 0:01:44]} Kxb7 {[%emt 0:01:28]} 22. Be4 {[%emt 0:04:33]} hxg3 {[%emt 0:01:16]} 23. Bxf5 {[%emt 0:00:16]} Rxh2+ {[%emt 0:00:19]} 24. Ke3 {[%emt 0:03:24]} exf5 {[%emt 0:00:13]} 25. Kf3 {[%emt 0:01:07]} g2 {[%emt 0:00:20]} 26. Rg1 {[%emt 0:00:02]} g5 {[%emt 0:00:22]} 27. Kg3 {[%emt 0:00:30]} Rh4 {[%emt 0:00:11]} 28. Kf3 {[%emt 0:00:18]} Rg4 {[%emt 0:00:24]} 29. c3 {[%emt 0:01:01]} Kb6 {[%emt 0:00:11]} 30. a4 {[%emt 0:00:53]} Ka5 {[%emt 0:00:14]} 31. Ke3 {[%emt 0:00:51]} f4+ {[%emt 0:00:13]} 32. Kf3 {[%emt 0:01:25]} Rg3+ {[%emt 0:00:06]} 33. Ke4 {[%emt 0:00:04]} f5+ {[%emt 0:00:45]} 34. Kxf5 {[%emt 0:00:58]} f3 {[%emt 0:00:09]} 0-1

[Event "46th GRE-chT Premier 2018"]
[Site "Rio Achaia"]
[Date "2018.07.10"]
[Round "1"]
[White "Kontopanagos, Ioannis"]
[Black "Klampatseas, Christos"]
[Result "1/2-1/2"]
[ECO "E46"]
[WhiteElo "1440"]
[BlackElo "1440"]
[Annotator "NA"]
[PlyCount "94"]
[EventDate "2018.07.10"]
[EventType "team-tourn"]
[EventCountry "GRE"]
[SourceTitle "playchess.com"]
[Source "ChessBase"]
[SourceQuality "1"]
[TimeControl "40/5400+30:1800+30"]

1. d4 {[%emt 0:00:00]} Nf6 {[%emt 0:00:00]} 2. c4 {[%emt 0:00:00]} e6 {[%emt 0:00:00]} 3. Nc3 {[%emt 0:00:00]} Bb4 {[%emt 0:00:00]} 4. e3 {[%emt 0:00:00]} O-O {[%emt 0:00:11]} 5. Nge2 {[%emt 0:00:08]} d5 {[%emt 0:00:57]} 6. a3 {[%emt 0:00:25]} Be7 {[%emt 0:00:50]} 7. Ng3 {[%emt 0:03:02]} c6 {[%emt 0:02:39]} 8. Be2 {[%emt 0:01:41]} a5 {[%emt 0:02:54]} 9. O-O {[%emt 0:03:59]} Na6 {[%emt 0:02:40]} 10. c5 {[%emt 0:12:12]} b6 {[%emt 0:12:54]} 11. cxb6 {[%emt 0:01:33]} Qxb6 {[%emt 0:01:27]} 12. Na4 {[%emt 0:00:31]} Qc7 {[%emt 0:13:58]} 13. Qc2 {[%emt 0:02:25]} Bd7 {[%emt 0:15:32]} 14. Bd2 {[%emt 0:04:35]} c5 {[%emt 0:10:41]} 15. Bxa6 {[%emt 0:03:13]} Bxa4 {[%emt 0:00:13]} 16. Qxa4 {[%emt 0:00:06]} Rxa6 {[%emt 0:00:17]} 17. dxc5 {[%emt 0:02:00]} Qxc5 {[%emt 0:05:48]} 18. Rfc1 {[%emt 0:16:34]} Qb6 {[%emt 0:02:15]} 19. Bc3 {[%emt 0:01:39]} h6 {[%emt 0:13:55]} 20. Bd4 {[%emt 0:06:31]} Qb7 {[%emt 0:01:58]} 21. Rc2 {[%emt 0:03:25]} Rc8 {[%emt 0:03:50]} 22. Rac1 {[%emt 0:01:38]} Rxc2 {[%emt 0:00:44]} 23. Rxc2 {[%emt 0:02:03]} Kh7 {[%emt 0:05:33]} 24. Be5 {[%emt 0:05:10]} Bd6 {[%emt 0:01:19]} 25. Bxd6 {[%emt 0:05:35]} Rxd6 {[%emt 0:00:12]} 26. Qxa5 {[%emt 0:02:16]} Rb6 {[%emt 0:00:38]} 27. Qc3 {[%emt 0:00:28]} Rb3 {[%emt 0:00:57]} 28. Qd2 {[%emt 0:00:51]} Nd7 {[%emt 0:00:50]} 29. f4 {[%emt 0:12:26]} Nb6 {[%emt 0:00:32]} 30. Rc3 {[%emt 0:00:46]} Rxc3 {[%emt 0:00:41]} 31. Qxc3 {[%emt 0:00:25]} Nc4 {[%emt 0:00:22]} 32. b4 {[%emt 0:06:07]} Qa7 {[%emt 0:00:29]} 33. Kf2 {[%emt 0:01:34]} Qxa3 {[%emt 0:00:12]} 34. Qxa3 {[%emt 0:00:33]} Nxa3 {[%emt 0:00:05]} 35. Ne2 {[%emt 0:00:18]} Kg6 {[%emt 0:00:31]} 36. Nd4 {[%emt 0:00:17]} Kf6 {[%emt 0:00:46]} 37. g4 {[%emt 0:01:06]} Ke7 {[%emt 0:00:35]} 38. h4 {[%emt 0:00:39]} f6 {[%emt 0:00:40]} 39. Kf3 {[%emt 0:00:49]} Kd7 {[%emt 0:00:49]} 40. e4 {[%emt 0:00:00]} Kd6 {[%emt 0:00:00]} 41. g5 {[%emt 0:04:58]} hxg5 {[%emt 0:06:00]} 42. hxg5 {[%emt 0:02:11]} fxg5 {[%emt 0:04:19]} 43. fxg5 {[%emt 0:00:05]} g6 {[%emt 0:03:01]} 44. exd5 {[%emt 0:02:00]} Kxd5 {[%emt 0:02:22]} 45. Ne2 {[%emt 0:00:29]} e5 {[%emt 0:01:15]} 46. Nc3+ {[%emt 0:00:33]} Kd4 {[%emt 0:06:19]} 47. Ne2+ {[%emt 0:01:35]} Kd3 {[%emt 0:02:26]} 1/2-1/2